[Event "SUI-ch Bundesturnier TP-1 2022"]
[Site "Payerne"]
[Date "2022.05.28"]
[Round "5.2"]
[White "Pogan, Nikolas"]
[Black "Colmenares, Aurelio"]
[Result "0-1"]
[ECO "A12"]
[WhiteElo "2239"]
[BlackElo "2318"]
[Annotator "TA"]
[PlyCount "99"]
[EventDate "2022.05.26"]
[EventType "swiss"]
[EventCountry "SUI"]
[SourceTitle "playchess.com"]
[Source "ChessBase"]
[SourceQuality "1"]
[TimeControl "5400+30"]

{[%evp 19,99,-10,-8,-15,-16,-31,-37,-30,-15,-47,-45,-33,-33,-52,-48,-48,-48,-48,-44,-49,0,-12,0,-2,0,-37,-39,-38,-12,-60,-67,-58,-62,-57,-35,-58,-51,-62,-47,-67,-49,-68,-50,-60,-50,-58,-50,-50,-47,-54,-53,-102,-62,-122,-120,-427,-448,-926,-810,-933,-917,-877,-428,-417,-332,-395,-359,-327,-235,-235,-235,-196,-187,-310,-325,-297,-299,-295,-295,-292,-283,-331]} 1. Nf3 {[%emt 0:00:12]} Nf6 {[%emt 0:01:21]} 2. g3 {[%emt 0:00:17]} d5 {[%emt 0:01:25]} 3. Bg2 {[%emt 0:00:43]} c6 {[%emt 0:00:38]} 4. b3 {[%emt 0:07:07]} Bf5 {[%emt 0:01:37]} 5. Bb2 {[%emt 0:00:21]} e6 {[%emt 0:01:48]} 6. d3 {[%emt 0:03:38]} h6 {[%emt 0:00:12]} 7. Nbd2 {[%emt 0:01:15]} Nbd7 {[%emt 0:00:46]} 8. c4 {[%emt 0:02:39]} Be7 {[%emt 0:02:49]} 9. O-O {[%emt 0:02:26]} O-O {[%emt 0:10:09]} 10. a3 {[%emt 0:08:22]} a5 {[%emt 0:00:35]} 11. cxd5 {[%emt 0:04:56] A12: English Opening: 1...c6 with b3 by White.} exd5 {[%emt 0:01:09]} 12. Nd4 {[%emt 0:00:05]} Bh7 {[%emt 0:00:17]} 13. Bh3 {[%emt 0:00:11] Black is slightly better.} Re8 {[%emt 0:03:19] [#]} 14. Ra2 $146 {[%emt 0:20:46]} ({Predecessor:} 14. Qc2 Bd6 15. Rfe1 Qb6 16. Nf5 Be5 17. Nf3 Bxb2 18. Qxb2 Bxf5 19. Bxf5 Re7 20. d4 {½-½ (104) Khusenkhojaev,M (2466)-Makhnev,D (2362) Almaty 2017}) 14... Bf8 {[%emt 0:01:19][%cal Be7f8,Bf8c5,Bc5d6][%mdl 32]} 15. Re1 {[%emt 0:08:07]} Qb6 {[%emt 0:19:28]} 16. N4f3 {[%emt 0:15:44]} Bc5 {[%emt 0:02:18]} 17. d4 {[%emt 0:02:23]} Bd6 {[%emt 0:00:43]} 18. e3 {[%emt 0:00:28]} Rad8 {[%emt 0:03:39]} 19. Bc3 {[%emt 0:01:20]} Ne4 {[%emt 0:03:24]} 20. Nxe4 {[%emt 0:00:44]} Bxe4 {[%emt 0:00:08]} 21. Nd2 {[%emt 0:00:24]} Bg6 {[%emt 0:00:19]} 22. Qa1 {[%emt 0:01:20]} Nf6 {[%emt 0:03:39]} 23. Qb2 {[%emt 0:00:20]} Ra8 {[%emt 0:03:31]} 24. Rea1 {[%emt 0:00:50]} (24. b4 $11) 24... Bd3 $15 {[%emt 0:03:48]} 25. b4 {[%emt 0:05:41]} a4 {[%emt 0:00:15]} 26. Re1 {[%emt 0:00:20]} Qb5 {[%emt 0:01:58]} 27. Qc1 {[%emt 0:00:50]} Re7 {[%emt 0:00:33]} 28. Ba1 {[%emt 0:00:27]} Rae8 {[%emt 0:03:41]} 29. Qd1 {[%emt 0:00:32]} Qa6 {[%emt 0:03:16] Black is much more active.} 30. Bg2 {[%emt 0:00:24]} Nd7 {[%emt 0:04:12]} 31. Bc3 {[%emt 0:02:44]} Nb6 {[%emt 0:01:29]} 32. Ra1 {[%emt 0:01:23]} Nc4 {[%emt 0:01:35]} 33. Nxc4 {[%emt 0:00:23]} Bxc4 {[%emt 0:00:07]} 34. Qd2 {[%emt 0:01:29]} h5 {[%emt 0:04:17]} 35. Rad1 {[%emt 0:00:34]} (35. h4 $15) 35... Qa8 {[%emt 0:00:35][%cal Oh5h4]} 36. Bf3 {[%emt 0:01:49]} ({Better is} 36. Rc1 $15) 36... h4 $17 {[%emt 0:00:23]} 37. gxh4 $2 {[%emt 0:02:26][%mdl 8192] This move loses the game for White.} (37. Bg4 $17 {is tougher.}) 37... Qc8 $19 {[%emt 0:00:23]} 38. Kg2 {[%emt 0:01:29] Against Qh3+} (38. Bg2 $142 Qg4 39. h5) 38... Re6 {[%emt 0:06:10][%cal Be7e6,Be6f6,Bf6f5,Bf5g5,Bg5g2][%mdl 32]} 39. h5 {[%emt 0:00:22] Inhibits Rg6+.} Rf6 {[%emt 0:00:53][%cal Of6f3]} 40. Be2 {[%emt 0:02:18]} Bxe2 {[%emt 0:03:50]} (40... Qf5 $142 41. f4 Bxe2 42. Qxe2 Bxf4) 41. Qxe2 {[%emt 0:00:27]} Re4 {[%emt 0:00:17] [#] Hoping for ...Rg4+.} 42. h3 {[%emt 0:01:48] Against Rg4+} Rf5 {[%emt 0:00:44] ( -> ...Rg5+)} 43. Rh1 {[%emt 0:00:32]} Rh4 {[%emt 0:03:34]} 44. Rdg1 {[%emt 0:00:25]} Rg5+ {[%emt 0:00:49]} (44... Rfxh5 $2 45. Kf1) 45. Kf1 {[%emt 0:00:04]} Rxh3 $40 {[%emt 0:00:40][%mdl 128] White is in trouble.} (45... Rgxh5 46. Qf3) (45... Rhxh5 46. Rxg5 Rxg5 47. Bd2 $17) 46. Qc2 {[%emt 0:01:24]} (46. Qd1 {might work better.}) 46... Rxh1 {[%emt 0:01:20] Black has a decisive advantage.} (46... Rgxh5 $2 47. Rxh3 Rxh3 48. Ke2 $19) (46... Rhxh5 $2 47. Rxh5 Rxh5 48. Ke1 $17) 47. Rxh1 {[%emt 0:00:04]} Qg4 {[%emt 0:00:07] [#] Inhibits Rh4. White must now prevent ...Qg2+.} 48. Ke1 {[%emt 0:00:27]} Qf3 {[%emt 0:00:53]} ({Stronger than} 48... Rxh5 49. Rxh5 Qxh5 50. Qxa4 $11) 49. Rf1 {[%emt 0:00:10]} Rg2 {[%emt 0:01:32]} ({Avoid the trap} 49... Rxh5 $2 50. Qe2 Qf5 51. Kd2 $19) ({Worse is} 49... Qxh5 50. Qxa4 Qf3 51. Kd2 $15) 50. Bb2 {[%emt 0:01:03] Weighted Error Value: White=0.42/Black=0.31} 0-1

[Event "SUI-ch Bundesturnier TP-1 2022"]
[Site "Payerne"]
[Date "2022.05.28"]
[Round "5.3"]
[White "Loeffler, Markus"]
[Black "Collin, Moritz Valentin"]
[Result "0-1"]
[ECO "A07"]
[WhiteElo "2272"]
[BlackElo "2052"]
[Annotator "TA"]
[PlyCount "126"]
[EventDate "2022.05.26"]
[EventType "swiss"]
[EventCountry "SUI"]
[SourceTitle "playchess.com"]
[Source "ChessBase"]
[SourceQuality "1"]
[TimeControl "5400+30"]

{[%evp 9,126,5,11,19,56,45,79,33,87,70,68,84,77,81,123,93,90,66,58,31,29,51,41,3,98,28,35,0,0,-73,17,-68,0,-8,33,-38,-57,-61,-61,-71,-8,-8,0,-84,-75,-111,-110,-100,-97,-119,-99,-102,-83,-152,-150,-640,232,-128,-135,-307,-288,-337,-332,-361,-320,-320,-316,-460,-454,-452,-434,-420,-418,-397,-390,-457,-453,-434,-427,-649,-570,-692,-677,-550,-680,-1313,-863,-4488,-3552,-4481,-2947,-2964,-2468,-29960,-29959,-29959,-29965,-6522,-5958,-29979,-29978,-29980,-29981,-29981,-29982,-29983,-29983,-29983,-29984,-29984,-29984,-29982,-29983,-29983,-29984,-29992,-29986,-29986,-29987]} 1. Nf3 {[%emt 0:01:12]} d5 {[%emt 0:00:48]} 2. g3 {[%emt 0:00:04]} Nf6 {[%emt 0:00:30]} 3. Bg2 {[%emt 0:00:02]} g6 {[%emt 0:00:44]} 4. O-O {[%emt 0:00:37]} Bg7 {[%emt 0:00:12]} 5. c4 {[%emt 0:07:42]} d4 {[%emt 0:07:56]} 6. b4 {[%emt 0:07:26] A07: Réti Opening: New York and Capablanca Systems.} c5 {[%emt 0:07:14]} 7. bxc5 {[%emt 0:01:04] [#]} Ne4 $146 {[%emt 0:08:11]} ({Predecessor:} 7... O-O 8. e3 e5 9. Nxe5 dxe3 10. fxe3 Ng4 11. Nxg4 Bxa1 12. d4 Nc6 13. Nf6+ Kg7 {1-0 (28) Wallace,J (2387)-Tuomainen,F (2228) Stockholm 2016}) 8. Ba3 {[%emt 0:15:09]} ({White should try} 8. Qa4+ $16 Nc6 9. Qa3) 8... d3 {[%emt 0:13:21]} (8... Qa5 $14) 9. Nc3 $1 $16 {[%emt 0:00:53]} Nxc3 {[%emt 0:03:32]} 10. dxc3 {[%emt 0:00:02]} dxe2 {[%emt 0:01:06]} 11. Qxe2 {[%emt 0:00:02]} Bxc3 {[%emt 0:09:33]} 12. Rab1 {[%emt 0:01:00]} Nc6 {[%emt 0:03:55]} 13. Rfd1 {[%emt 0:04:21]} Qa5 {[%emt 0:03:11]} 14. Rb3 {[%emt 0:09:17][%cal Ob3c3]} (14. Bc1 $5 {[%cal Rb1b5]} O-O 15. Bf4 $14) 14... Bf6 {[%emt 0:02:48]} 15. Qe3 {[%emt 0:02:06]} O-O {[%emt 0:02:33]} 16. h4 {[%emt 0:05:44]} h5 {[%emt 0:09:42]} (16... Bf5 $11) 17. Ng5 {[%emt 0:05:31]} (17. Bb2 $1 $16) 17... Qc7 $11 {[%emt 0:06:32]} 18. Bd5 {[%emt 0:02:00]} Bf5 {[%emt 0:03:08]} 19. Rd2 {[%emt 0:05:23] Against Bc2} (19. Ne4 $11 {remains equal.}) 19... e6 {[%emt 0:04:52]} (19... Na5 $17 20. Rb5 a6) 20. Bg2 {[%emt 0:01:43]} (20. Bxc6 $11 Qxc6 21. Rd6 Bxg5 22. hxg5) 20... Rfd8 {[%emt 0:00:37]} ({Black should play} 20... Na5 $1 $15 21. Rb4 Rad8) 21. Rd6 {[%emt 0:02:00]} Be7 {[%emt 0:02:17] [#]} 22. Ne4 {[%emt 0:01:05]} (22. Be4 $1 $14) 22... Na5 $15 {[%emt 0:01:34]} (22... Bxd6 $2 23. cxd6 Qa5 24. Nf6+ Kg7 25. Bb2 $18) 23. Rc3 {[%emt 0:18:09][%cal Oe3f4]} Bxe4 {[%emt 0:02:40]} (23... Bxd6 $2 24. cxd6 Rxd6 25. Bxd6 $18) 24. Bxe4 {[%emt 0:01:17]} Rxd6 {[%emt 0:00:40]} (24... Bxd6 $17 25. cxd6 Rxd6 26. Bxd6 Qxd6) 25. cxd6 $11 {[%emt 0:00:13]} Bxd6 {[%emt 0:00:08]} 26. c5 {[%emt 0:03:24]} (26. Bxg6 $11 {keeps the balance.} Bxa3 27. Rxa3 fxg6 28. Qxe6+ Kg7 29. Rxa5) 26... Be5 {[%emt 0:00:55]} 27. Rc2 {[%emt 0:00:46]} Rd8 {[%emt 0:01:08]} 28. Qg5 {[%emt 0:00:49]} Kg7 {[%emt 0:01:05]} 29. Kg2 {[%emt 0:01:15]} Nc6 {[%emt 0:00:38][%cal Ba5c6,Bc6e7,Be7f5,Bf5d6][%mdl 32]} 30. Bc1 {[%emt 0:01:07]} Ne7 {[%emt 0:01:11]} 31. Kh2 {[%emt 0:02:08]} (31. Rb2 $142 Rb8 32. Rc2) 31... Nf5 $17 {[%emt 0:00:45]} 32. c6 $2 {[%emt 0:00:15]} (32. Bxf5 $17 exf5 33. Re2) 32... Bf6 $4 {[%emt 0:01:41][%mdl 8192] [#]} (32... f6 $19 33. cxb7 fxg5 34. Rxc7+ Bxc7 35. Bxg5 Rd4) 33. cxb7 $2 {[%emt 0:01:29]} Qxc2 $1 {[%emt 0:00:40] Really sharp!} 34. Bxc2 {[%emt 0:00:27]} (34. Qxf6+ $17 Kxf6 35. Bxc2) 34... Bxg5 $19 {[%emt 0:00:10]} 35. hxg5 $18 {[%emt 0:00:01][%mdl 4096] Endgame [#] KRN-KB} Nd6 $1 {[%emt 0:00:39]} 36. Bb2+ {[%emt 0:01:08] [#]} Kh7 $1 {[%emt 0:00:31]} 37. Bf6 {[%emt 0:00:40]} Rg8 {[%emt 0:00:31]} ({Weaker is} 37... Nxb7 38. Bxd8 Nxd8 39. Kh3 $17) 38. Be4 {[%emt 0:01:15]} (38. Bd4 $142 Nxb7 39. Be4) 38... Nxe4 $19 {[%emt 0:00:10]} 39. Be5 {[%emt 0:00:04]} Nxg5 {[%emt 0:01:27] ( -> ...Nf3+)} 40. b8=Q {[%emt 0:00:02]} Rxb8 {[%emt 0:00:06]} 41. Bxb8 {[%emt 0:00:02] KB-KN} a6 {[%emt 0:00:39]} 42. Kg2 {[%emt 0:00:01]} Ne4 {[%emt 0:00:48]} 43. Kf3 {[%emt 0:00:12]} Nc3 {[%emt 0:00:16]} 44. a3 {[%emt 0:00:17]} (44. Bf4 $142 Nxa2 45. Bd2) 44... g5 {[%emt 0:00:19]} 45. Ke3 {[%emt 0:00:26]} Kg6 {[%emt 0:00:34] And now ...Kf5 would win.} 46. Kd3 {[%emt 0:00:04]} Nd5 {[%emt 0:00:34] ...Kf5 is the strong threat.} 47. Kc4 {[%emt 0:01:06]} Kf5 {[%emt 0:00:21]} 48. Kb3 {[%emt 0:00:09]} e5 {[%emt 0:00:33]} 49. Kc4 {[%emt 0:01:15]} Nb6+ {[%emt 0:00:23]} 50. Kd3 {[%emt 0:00:59]} h4 {[%emt 0:00:22] Hoping for ...h3.} 51. gxh4 {[%emt 0:00:04]} gxh4 {[%emt 0:00:08]} 52. Ke2 {[%emt 0:00:31]} Kf4 {[%emt 0:00:26]} 53. Kf1 {[%emt 0:00:11]} Nc4 {[%emt 0:00:26] aiming for ...h3.} 54. a4 {[%emt 0:00:09]} Kf3 {[%emt 0:00:09] Black mates.} 55. Bc7 {[%emt 0:00:15]} f5 {[%emt 0:00:17][%cal Bf7f5,Bf5f4,Bf4e3,Be3e2][%mdl 32]} 56. Kg1 {[%emt 0:00:06]} f4 {[%emt 0:00:14]} 57. Bd8 {[%emt 0:00:11]} h3 {[%emt 0:00:17]} 58. Bc7 {[%emt 0:00:03]} e4 {[%emt 0:00:24]} 59. Kh2 {[%emt 0:00:02]} Kg4 {[%emt 0:00:52]} 60. Bb8 {[%emt 0:00:21]} e3 {[%emt 0:00:23]} 61. fxe3 {[%emt 0:00:18]} fxe3 {[%emt 0:00:07]} 62. Bg3 {[%emt 0:00:13]} e2 {[%emt 0:00:14]} 63. Be1 {[%emt 0:00:12]} Ne5 {[%emt 0:00:19] Weighted Error Value: White=0.98/Black=0.40} 0-1

[Event "SUI-ch Bundesturnier TP-1 2022"]
[Site "Payerne"]
[Date "2022.05.28"]
[Round "5.4"]
[White "Joie, Sebastien"]
[Black "Kamber, Bruno"]
[Result "1/2-1/2"]
[ECO "A07"]
[WhiteElo "2376"]
[BlackElo "2225"]
[Annotator "TA"]
[PlyCount "75"]
[EventDate "2022.05.26"]
[EventType "swiss"]
[EventCountry "SUI"]
[SourceTitle "playchess.com"]
[Source "ChessBase"]
[SourceQuality "1"]
[TimeControl "5400+30"]

{[%evp 9,75,2,27,38,18,21,55,60,57,58,57,48,116,104,107,98,106,106,122,97,91,84,112,67,41,48,49,29,39,33,54,65,72,29,29,13,22,21,23,23,31,32,32,18,18,0,35,-79,-86,-81,-77,-70,-70,-70,-70,-70,-70,-77,-71,-99,-99,-89,-29,-36,-23,-26,0,-35]} 1. Nf3 {[%emt 0:01:02]} d5 {[%emt 0:00:53]} 2. g3 {[%emt 0:01:09]} Bg4 {[%emt 0:03:19]} 3. Ne5 {[%emt 0:00:09]} Bf5 {[%emt 0:00:18]} 4. d4 {[%emt 0:00:07]} Nd7 {[%emt 0:00:25]} 5. Bg2 {[%emt 0:00:11]} Nxe5 {[%emt 0:00:46]} (5... e6 {is interesting.} 6. c4 c6 7. O-O Ngf6) 6. dxe5 {[%emt 0:00:03] A07: Réti Opening: New York and Capablanca Systems.} c6 {[%emt 0:00:11]} 7. O-O {[%emt 0:00:50]} h5 {[%emt 0:00:56]} 8. c4 {[%emt 0:03:52][%cal Rc4d5] White is slightly better.} e6 {[%emt 0:05:47] [#]} 9. cxd5 $146 {[%emt 0:03:10]} ({Predecessor:} 9. Nc3 Be7 10. Qa4 Kf8 11. e4 dxe4 12. Rd1 Qc7 13. Qb3 g6 14. Nxe4 Bxe4 15. Bxe4 {0-1 (27) Gros,A (2029)-Daurelle,H (2189) Paris 2014}) 9... exd5 {[%emt 0:00:02]} 10. Nc3 {[%emt 0:00:12]} d4 {[%emt 0:00:54]} (10... h4 $14) 11. Ne4 $16 {[%emt 0:00:48]} h4 {[%emt 0:00:24]} 12. Bg5 {[%emt 0:02:06]} f6 {[%emt 0:03:06] [#]} 13. exf6 {[%emt 0:00:19]} (13. Bxh4 Bxe4 14. Bxe4 g5 $14) 13... Nxf6 {[%emt 0:05:45] [#]} 14. Qb3 $1 {[%emt 0:01:58][%cal Ob3b7]} h3 {[%emt 0:02:32] [#]} 15. Bf3 {[%emt 0:01:19][%cal Ob3b7] White is more active.} Qe7 {[%emt 0:01:59]} 16. Nxf6+ {[%emt 0:03:22]} gxf6 {[%emt 0:00:06]} 17. Bf4 {[%emt 0:00:04]} Qb4 {[%emt 0:01:26]} 18. Qxb4 {[%emt 0:06:48]} Bxb4 {[%emt 0:00:34]} 19. Rfd1 {[%emt 0:00:02]} O-O-O {[%emt 0:01:30]} 20. Rac1 {[%emt 0:00:41]} Be7 {[%emt 0:03:12]} 21. e3 {[%emt 0:14:28]} dxe3 $1 {[%emt 0:15:21]} 22. fxe3 {[%emt 0:00:12]} Rxd1+ {[%emt 0:03:33]} (22... Be6 {seems wilder.} 23. Kf2 a6 24. a3 a5) 23. Rxd1 {[%emt 0:00:07]} Bc5 {[%emt 0:00:11]} 24. Kf2 {[%emt 0:01:41]} Rg8 {[%emt 0:04:23]} 25. a3 {[%emt 0:07:00]} a5 {[%emt 0:00:23]} 26. Bd6 {[%emt 0:02:59]} Bb6 {[%emt 0:02:23]} 27. Bf4 {[%emt 0:06:18]} Bc5 {[%emt 0:00:22]} 28. g4 {[%emt 0:02:50]} (28. Rc1 $14 {keeps the upper hand.} Be7 29. e4) 28... Bxg4 $17 {[%emt 0:01:52]} 29. Rg1 {[%emt 0:04:23]} f5 {[%emt 0:00:27]} 30. Bxg4 {[%emt 0:00:03]} fxg4 {[%emt 0:00:15][%mdl 4096] Endgame KRB-KRB} ({Much worse is} 30... Rxg4 31. Rxg4 fxg4 32. Kg3 $14) 31. Rc1 {[%emt 0:01:44]} Be7 {[%emt 0:01:46]} 32. Kg3 {[%emt 0:00:09] Inhibits Bh4+.} Kd7 {[%emt 0:06:46]} 33. a4 {[%emt 0:04:11]} Ke6 {[%emt 0:06:43]} 34. Rc4 {[%emt 0:00:36]} Bb4 {[%emt 0:02:07][%cal Rb4e1]} 35. Re4+ {[%emt 0:06:09]} Kf6 {[%emt 0:04:01]} (35... Kf7 $17 {[%cal Rb4e1]} 36. Kh4 b5) 36. Kf2 $11 {[%emt 0:00:10] Against Be1+} Rd8 {[%emt 0:00:34] ...Rd2+ is the strong threat.} 37. Kg3 {[%emt 0:00:17]} Rg8 {[%emt 0:00:12][%cal Rb4e1]} (37... b5 $5 {[%cal Rd8g8]}) 38. Kf2 $1 {[%emt 0:00:04] Against Be1+.  Weighted Error Value: White=0.13 (very precise) /Black=0.10 (very precise)} 1/2-1/2

[Event "SUI-ch Bundesturnier TP-1 2022"]
[Site "Payerne"]
[Date "2022.05.28"]
[Round "5.5"]
[White "Gschnitzer, Adrian"]
[Black "Schlegel, Igor"]
[Result "0-1"]
[ECO "B94"]
[WhiteElo "2441"]
[BlackElo "2183"]
[Annotator "TA"]
[PlyCount "54"]
[EventDate "2022.05.26"]
[EventType "swiss"]
[EventCountry "SUI"]
[SourceTitle "playchess.com"]
[Source "ChessBase"]
[SourceQuality "1"]
[TimeControl "5400+30"]

{[%evp 11,54,12,6,18,25,25,21,22,33,20,34,25,20,36,39,0,0,0,0,0,0,0,2,0,0,0,0,0,0,-68,-62,-70,-70,-100,-108,-133,0,-210,-33,-237,-243,-784,-787,-747,-722]} 1. e4 {[%emt 0:00:04]} c5 {[%emt 0:00:01]} 2. Nf3 {[%emt 0:00:14]} d6 {[%emt 0:00:03]} 3. d4 {[%emt 0:00:21]} cxd4 {[%emt 0:00:03]} 4. Nxd4 {[%emt 0:00:10]} Nf6 {[%emt 0:00:04]} 5. Nc3 {[%emt 0:00:12]} a6 {[%emt 0:00:02]} 6. Bg5 {[%emt 0:00:24]} Nbd7 {[%emt 0:00:03]} 7. Qe2 {[%emt 0:00:58] 7.Qe2 is the modern continuation. B94: Sicilian Najdorf: 6 Bg5 Nbd7.} h6 {[%emt 0:00:11]} 8. Bh4 {[%emt 0:00:21]} g6 {[%emt 0:00:08]} 9. f4 {[%emt 0:00:26] Threatening e5. The position is equal.} e5 {[%emt 0:00:07]} 10. fxe5 {[%emt 0:00:40]} dxe5 {[%emt 0:00:06] [#] Hoping for ...g5.} 11. O-O-O $1 {[%emt 0:01:05]} Qc7 {[%emt 0:00:10]} (11... exd4 12. e5 Bc5 13. exf6+ Kf8 14. Ne4 $16) 12. Nb3 {[%emt 0:00:19]} b5 {[%emt 0:00:31]} 13. Rxd7 {[%emt 0:00:25]} Nxd7 {[%emt 0:00:28]} 14. Nd5 {[%emt 0:00:10][%cal Rd5c7]} Qb8 {[%emt 0:06:47]} 15. Na5 {[%emt 0:00:23] Pair of Knights!} Bg7 {[%emt 0:02:56]} 16. Qf3 {[%emt 0:00:53]} Bb7 {[%emt 0:50:58]} 17. Qa3 {[%emt 0:01:00][%csl Gd5,Gh4][%cal Ra3e7]} Bf8 {[%emt 0:01:07] Inhibits Qe7+.} 18. Qd3 {[%emt 0:00:23] [#] And now Nf6+ would win.} Bc5 $146 {[%emt 0:05:26]} ({Predecessor:} 18... Bg7 19. Be2 Ra7 20. Rd1 Ba8 21. Bg4 Kf8 22. Bf2 Nf6 23. Qa3+ {½-½ (25) Poetsch,H (2522)-Vrolijk,L (2467) Groningen 2019}) 19. Be2 {[%emt 0:08:35] Black must now prevent Bg4.} O-O {[%emt 0:12:10]} 20. Ne7+ {[%emt 0:17:42]} (20. Nxb7 $11 Qxb7 21. b4) 20... Bxe7 $15 {[%emt 0:00:27]} 21. Bxe7 {[%emt 0:00:03] [#]} Rc8 $1 {[%emt 0:10:24] Threatens to win with ...Nc5.} 22. Qxd7 {[%emt 0:12:08]} (22. Bg4 Nc5) 22... Bxe4 {[%emt 0:00:03]} 23. Bd1 {[%emt 0:00:25]} Qb6 {[%emt 0:07:04]} ({Black should play} 23... Ra7 $17 24. Qd6 Rac7) 24. Qd2 {[%emt 0:05:05]} (24. Nb3 $1 $11 {and White stays safe.}) 24... Qe6 $2 {[%emt 0:00:31]} (24... Ra7 $19 25. Bb4 Bxc2 26. Bxc2 Rac7) 25. Qb4 {[%emt 0:00:31] [#]} (25. Re1 $15) 25... Qf5 $1 $19 {[%emt 0:02:32][%cal Re4c2]} ({Worse is} 25... Bxg2 26. Rg1 Ra7 27. Bc5 $17) ({Stronger than} 25... f5 26. Qd6 Qxd6 27. Bxd6 $11) 26. Qb3 {[%emt 0:05:32] [#]} (26. Kb1 Bxc2+ 27. Ka1 Bxd1 28. Rxd1) 26... Rxc2+ $3 {[%emt 0:00:26][%mdl 576] Clearance} 27. Bxc2 {[%emt 0:01:06]} Rc8 {[%emt 0:00:01] Weighted Error Value: White=0.52/Black=0.20 (precise)} 0-1

[Event "SUI-ch Bundesturnier TP-1 2022"]
[Site "Payerne"]
[Date "2022.05.28"]
[Round "5.6"]
[White "Hagner, Bennet"]
[Black "Willems, Niels"]
[Result "0-1"]
[ECO "B12"]
[WhiteElo "2186"]
[BlackElo "2338"]
[Annotator "TA"]
[PlyCount "54"]
[EventDate "2022.05.26"]
[EventType "swiss"]
[EventCountry "SUI"]
[SourceTitle "playchess.com"]
[Source "ChessBase"]
[SourceQuality "1"]
[TimeControl "5400+30"]

{[%evp 11,54,20,37,15,51,40,61,59,59,64,51,58,79,55,102,102,102,105,99,0,-1,-39,-61,-65,-50,-58,-55,-161,-60,-34,0,0,0,-112,-66,-354,-351,-414,-419,-438,-428,-5522,-653,-1832,-1770]} 1. e4 {[%emt 0:00:02]} c6 {[%emt 0:00:08]} 2. d4 {[%emt 0:00:04]} d5 {[%emt 0:00:05]} 3. e5 {[%emt 0:00:05]} Bf5 {[%emt 0:00:04]} 4. Nf3 {[%emt 0:00:06]} e6 {[%emt 0:00:04]} 5. Be2 {[%emt 0:00:05]} Nd7 {[%emt 0:00:08]} 6. O-O {[%emt 0:00:07]} h6 {[%emt 0:00:04]} 7. a4 {[%emt 0:00:10] Recently 7.c3 got a lot of attention. B12: Caro-Kann: Advance Variation.} Ne7 {[%emt 0:00:38]} 8. a5 {[%emt 0:00:06]} a6 {[%emt 0:00:08]} 9. b4 {[%emt 0:00:14] Against c5. White is slightly better.} g5 {[%emt 0:03:05]} 10. Ne1 {[%emt 0:02:51]} Qc7 {[%emt 0:01:52] [#]} 11. Bh5 $146 {[%emt 0:08:22]} ({Predecessor:} 11. Bd3 Bg7 12. c3 O-O-O 13. f4 f6 14. Bxf5 Nxf5 15. Nd3 h5 16. Qe2 fxe5 17. fxe5 {1-0 (44) Gonzalez Vidal,Y (2518)-McKennis,D (1735) Tornelo INT 2021}) 11... Bg6 {[%emt 0:03:23]} 12. f4 {[%emt 0:04:17]} Bg7 {[%emt 0:07:35]} (12... O-O-O $14 {might be stronger.}) 13. Nd3 $16 {[%emt 0:16:39]} (13. fxg5 $6 Nxe5 14. dxe5 Bxe5 $11) 13... O-O-O {[%emt 0:20:45]} 14. Bxg6 {[%emt 0:10:34]} (14. fxg5 $6 Bxd3 15. Rxf7 (15. cxd3 Nf5 $17) (15. Qxd3 Nxe5 16. dxe5 Bxe5 $11) 15... Bxe5 16. dxe5 Qxe5 $14) 14... Nxg6 {[%emt 0:02:20]} 15. f5 {[%emt 0:02:58]} (15. fxg5 $6 hxg5 16. g3 (16. Rxf7 Ngxe5 17. Rxg7 Nxd3 $17) (16. Bxg5 f6 $15) 16... f6 $11) ({Better is} 15. Qh5 $16) 15... exf5 $11 {[%emt 0:02:07]} 16. Rxf5 {[%emt 0:00:08]} f6 {[%emt 0:01:28][%cal Rf6e5]} 17. exf6 {[%emt 0:14:52]} (17. e6 Ndf8) 17... Nxf6 {[%emt 0:00:59]} 18. Nc5 {[%emt 0:00:44]} Rde8 {[%emt 0:00:50]} 19. Nc3 {[%emt 0:02:35] [#]} (19. c3 $15) 19... Rhf8 {[%emt 0:08:08]} ({Black should play} 19... h5 $1 $19 {Threatens to win with ...Ng4.} 20. g3 Ng4 21. Bxg5 Rhf8 22. Rxf8 Rxf8) 20. b5 $15 {[%emt 0:01:42]} cxb5 {[%emt 0:02:32]} (20... axb5 $2 21. a6 bxa6 22. Rxa6 $18) 21. Nxb5 {[%emt 0:05:37]} Qe7 {[%emt 0:30:51]} (21... axb5 22. a6 Qe7 23. axb7+ Kc7 24. b8=R Kxb8 25. Qd3 Qe1+ 26. Rf1 $16) 22. Qd3 {[%emt 0:13:11]} (22. Na7+ $1 $11 {was the only way to keep the balance.} Kb8 {[#]} 23. Rb1 $1) 22... Ng4 {[%emt 0:07:43]} ({Of course not} 22... axb5 $6 23. a6 bxa6 24. Rxa6 Qe1+ 25. Rf1 $11) (22... Ne4 $17 23. Rxf8 (23. Nxe4 axb5 24. Ng3 Qe1+ 25. Rf1 Rxf1+ 26. Nxf1 Re4 $17) 23... Bxf8 24. Nxe4 Qxe4 25. Qxe4 (25. Qc3+ $2 Kb8 $19) 25... Rxe4) 23. Bd2 $2 {[%emt 0:04:35][%mdl 8192] This move loses the game for White.} axb5 $19 {[%emt 0:01:16] Chess con chili.} 24. a6 {[%emt 0:00:09]} bxa6 {[%emt 0:00:20]} ({And not} 24... Bxd4+ 25. Qxd4 Rxf5 26. axb7+ (26. a7 Kc7 $11) 26... Kc7 27. Ba5+ Kd6 28. Bd2 $11) 25. Rxf8 {[%emt 0:00:57]} Qxf8 {[%emt 0:01:27] Black is clearly winning.} (25... Rxf8 $2 26. Rxa6 Qf7 27. Ra8+ Kc7 28. Ra7+ Kc8 29. Rxf7 Rxf7 30. h3 $18) 26. Nxa6 {[%emt 0:07:12]} (26. Rf1 $142 Nf4 27. Bxf4 gxf4 28. Nxa6) 26... Qf2+ {[%emt 0:00:37]} 27. Kh1 {[%emt 0:00:01] Threatening mate with Qc3+.} Bxd4 {[%emt 0:00:36] Weighted Error Value: White=0.64/Black=0.15 (very precise)} ({Inferior is} 27... Qxd4 28. Qf5+ Kd8 29. Ba5+ Ke7 30. Re1+ N6e5 31. Bb4+ Kd8 32. Ba5+ Ke7 33. Bb4+ Kd8 34. Ba5+ Ke7 $11) 0-1